bitfinex-derivatives/quotes_SOLF0:USTF0_20241026
["timestamp","ask_amount","ask_price","bid_price","bid_amount"]
[1729971152322,4.74,171.47,171.45,2.9198]
[1729971152517,4.74,171.47,171.44,8.0651863]
[1729971153326,4.74,171.47,171.44,10.9850863]
[1729971153527,4.74,171.47,171.46,8.0651863]
[1729971153928,4.74,171.47,171.46,10.9848863]
[1729971155927,4.74,171.48,171.47,2.9195]
[1729971156128,2.9191,171.5,171.47,10.9846863]
[1729971156336,200.11871505,171.51,171.48,8.0651863]
[1729971156535,200.11871505,171.51,171.5,8.0651863]
[1729971156834,204.85871505,171.51,171.5,8.0651863]
[1729971157034,204.85871505,171.51,171.5,10.9841863]
[1729971158534,204.83871505,171.51,171.5,8.0651863]
[1729971159033,4.72,171.51,171.5,8.0651863]
[1729971159541,4.72,171.51,171.5,10.9841863]
[1729971161233,2.9184,171.54,171.5,10.9841863]
[1729971161433,4.72,171.53,171.5,10.9841863]
[1729971163734,5.8332,171.65,171.51,8.0651863]
[1729971163930,7.9103,171.64,171.55,8.0651863]
[1729971164134,8.0651863,171.61,171.55,8.0651863]
[1729971164330,2.9177,171.59,171.55,8.0651863]
[1729971165335,2.9177,171.59,171.55,10.9832863]
[1729971166539,8.0651863,171.6,171.55,10.9832863]
[1729971166743,2.9177,171.58,171.55,10.9832863]
[1729971170850,4.72,171.59,171.57,8.0651863]
[1729971171648,2.917,171.63,171.6,2.9173]
[1729971171949,4.72,171.62,171.6,10.9824863]
[1729971172146,2.917,171.63,171.6,10.9824863]
[1729971172349,2.97682206,171.7,171.62,8.0651863]
[1729971172350,2.91048425,171.7,171.62,8.0651863]
[1729971172556,4.72,171.69,171.66,8.0651863]
[1729971172849,4.72,171.69,171.66,10.9814863]
[1729971173050,8.0651863,171.75,171.67,8.0651863]
[1729971173349,4.72,171.74,171.7,8.0651863]
[1729971174241,2.9152,171.73,171.7,8.0651863]
[1729971175146,2.9152,171.73,171.68,10.9811863]
[1729971176560,12.7851863,171.74,171.68,10.9811863]
[1729971176850,2.9153,171.72,171.68,10.9811863]
[1729971179254,2.9153,171.72,171.68,8.0651863]
[1729971179255,2.9155,171.71,171.68,8.0651863]
[1729971180350,2.9155,171.71,171.68,10.9811863]
[1729971190857,12.7651863,171.7,171.62,1.5366]
[1729971191062,2.9164,171.66,171.63,8.0651863]
[1729971192356,2.9164,171.66,171.62,1.5366]
[1729971192357,2.9166,171.65,171.62,9.6017863]
[1729971192661,4.7,171.66,171.59,1.5089]
[1729971192865,12.7651863,171.66,171.61,8.0651863]
[1729971193660,12.7651863,171.66,171.6,8.0651863]
[1729971194766,12.7651863,171.66,171.61,8.0651863]
[1729971195268,2.9168,171.64,171.61,8.0651863]
[1729971196965,2.9168,171.64,171.61,10.9822863]
[1729971197969,2.9168,171.64,171.61,2.9171]
[1729971198163,2.9168,171.64,171.61,10.9822863]
[1729971203068,2.9168,171.64,171.61,2.9171]
[1729971209067,2.9168,171.64,171.6,8.0651863]
[1729971209372,2.9168,171.64,171.62,2.917]
[1729971209773,2.9168,171.64,171.61,2.9171]
[1729971210870,2.9168,171.64,171.6,8.0651863]
[1729971211076,2.9168,171.64,171.62,2.917]
[1729971213778,8.0651863,171.65,171.59,1.5089]
[1729971214077,8.0651863,171.65,171.6,8.0651863]
[1729971214483,2.9167,171.64,171.61,2.9171]
[1729971224285,8.0651863,171.65,171.59,1.5089]
[1729971224589,8.0651863,171.63,171.59,1.5089]
[1729971224986,8.0651863,171.63,171.58,9.6730863]
[1729971225189,8.0651863,171.61,171.55,9.6152863]
[1729971225784,8.0651863,171.59,171.55,1.5501]
[1729971225986,2.9173,171.61,171.57,8.0651863]
[1729971226187,12.7651863,171.62,171.58,8.0651863]
[1729971226487,4.7,171.62,171.61,10.9823863]
[1729971228491,8.0651863,171.65,171.61,10.9823863]
[1729971228700,4.7,171.64,171.63,2.9168]
[1729971229598,4.7,171.64,171.62,10.9821863]
[1729971231296,196.87893284,171.67,171.62,8.0651863]
[1729971231490,196.87893284,171.67,171.66,8.0651863]
[1729971232294,196.87893284,171.67,171.66,10.9814863]
[1729971234601,2.9155,171.71,171.67,2.916]
[1729971234902,4.7,171.69,171.67,8.0651863]
[1729971235094,4.7,171.69,171.67,10.9812863]
[1729971243505,2.9157,171.7,171.67,10.9812863]
[1729971243906,4.7,171.71,171.67,8.0651863]
[1729971244107,7.6156,171.71,171.68,2.916]
[1729971244808,7.6156,171.71,171.69,8.0651863]
[1729971246802,2.9156,171.71,171.69,8.0651863]
[1729971247508,196.80954565,171.74,171.7,8.0651863]
[1729971247705,4.7,171.75,171.73,8.0651863]
[1729971247911,56.66,171.82,171.73,8.0651863]
[1729971247912,4.7,171.77,171.73,8.0651863]
[1729971248111,4.7,171.78,171.77,8.0651863]
[1729971248511,4.7,171.78,171.75,8.0651863]
[1729971248914,2.9145,171.77,171.75,8.0651863]
[1729971249517,7.6145,171.77,171.75,8.0651863]
[1729971255108,4.7,171.77,171.75,8.0651863]
[1729971255309,4.7,171.77,171.75,10.9799863]
[1729971255816,56.66,171.82,171.76,8.0651863]
[1729971256114,2.9141,171.8,171.79,8.0651863]
[1729971258724,12.7451863,171.81,171.71,1.6337]
[1729971258923,8.0651863,171.78,171.73,10.9801863]
[1729971259123,4.68,171.77,171.73,10.9801863]
[1729971259322,7.5946,171.77,171.73,10.9801863]
[1729971260930,2.9146,171.77,171.73,10.9801863]
[1729971261121,7.5946,171.77,171.73,10.9801863]
[1729971261318,7.5946,171.77,171.74,2.9149]
[1729971261724,2.9146,171.77,171.75,8.0651863]
[1729971261923,7.5946,171.77,171.75,8.0651863]
[1729971267727,2.9146,171.77,171.75,8.0651863]
[1729971273144,7.5944,171.78,171.75,10.9799863]
[1729971276635,7.5944,171.78,171.76,8.0651863]
[1729971283044,2.9144,171.78,171.76,8.0651863]
[1729971283541,4.68,171.79,171.78,2.9143]
[1729971283743,2.9138,171.81,171.78,10.9794863]
[1729971284042,7.5938,171.81,171.8,8.0651863]
[1729971284433,4.68,171.81,171.8,8.0651863]
[1729971284636,56.64,171.86,171.8,8.0651863]
[1729971284838,56.64,171.86,171.85,8.0651863]
[1729971285149,4.68,171.87,171.85,8.0651863]
[1729971285348,4.68,171.87,171.86,8.0651863]
[1729971286346,7.5927,171.88,171.86,8.0651863]
[1729971286939,4.68,171.88,171.77,4.6678]
[1729971287147,2.9132,171.85,171.81,8.0651863]
[1729971287340,4.68,171.84,171.81,8.0651863]
[1729971287946,4.68,171.84,171.81,10.9788863]
[1729971288831,4.68,171.84,171.83,8.0651863]
[1729971289031,4.5821013,171.9,171.83,8.0651863]
[1729971289032,4.68,171.87,171.83,8.0651863]
[1729971289233,4.68,171.87,171.85,8.0651863]
[1729971291235,2.9131,171.85,171.82,8.0651863]
[1729971292744,2.9131,171.85,171.83,8.0651863]
[1729971294540,2.9131,171.85,171.77,4.6678]
[1729971294541,8.0651863,171.86,171.77,4.6678]
[1729971294744,8.0651863,171.86,171.8,8.0651863]
[1729971296341,2.9135,171.83,171.8,8.0651863]
[1729971296749,4.68,171.83,171.79,10.9792863]
[1729971298341,2.9136,171.82,171.79,10.9792863]
[1729971298948,2.9136,171.82,171.79,8.0651863]
[1729971299644,2.9153,171.72,171.66,2.9162]
[1729971299852,56.62,171.81,171.6,3.0503]
[1729971299853,2.95888989,171.77,171.67,8.0651863]
[1729971300047,8.0651863,171.73,171.67,8.0651863]
[1729971300252,8.0651863,171.71,171.64,1.6511]
[1729971300443,8.0651863,171.69,171.64,9.7162863]
[1729971300648,4.68,171.68,171.64,9.7162863]
[1729971301657,7.596,171.68,171.64,9.7162863]
[1729971302557,7.596,171.68,171.65,8.0651863]
[1729971304649,4.68,171.67,171.65,8.0651863]
[1729971305857,4.68,171.67,171.64,9.7162863]
[1729971307159,4.68,171.68,171.66,8.0651863]
[1729971307362,2.9159,171.69,171.66,8.0651863]
[1729971307661,7.5959,171.69,171.66,8.0651863]
[1729971308259,4.68,171.69,171.66,8.0651863]
[1729971308861,7.596,171.69,171.66,8.0651863]
[1729971309263,2.916,171.68,171.66,8.0651863]
[1729971310254,2.916,171.68,171.64,12.6328863]
[1729971313855,4.68,171.69,171.64,1.6511]
[1729971314057,8.0651863,171.67,171.64,1.6511]
[1729971314568,2.9164,171.66,171.64,1.6511]
[1729971314765,4.68,171.65,171.64,1.6511]
[1729971317569,7.5965,171.65,171.64,1.6511]
[1729971318876,12.7451863,171.65,171.6,3.0503]
[1729971319075,2.9169,171.63,171.6,14.0326863]
[1729971319574,2.9172,171.62,171.6,1.52]
[1729971319761,4.68,171.61,171.6,1.52]
[1729971320970,4.68,171.61,171.57,1.5488]
[1729971321369,2.9178,171.58,171.54,1.5148]
[1729971321563,2.9178,171.58,171.54,11.0898863]
[1729971321970,4.68,171.57,171.54,11.0898863]
[1729971322363,4.68,171.57,171.55,2.9182]
[1729971326573,4.68,171.57,171.54,14.0081863]
[1729971327070,2.9182,171.55,171.54,3.0247]
[1729971327271,12.7451863,171.57,171.54,3.0247]
[1729971327968,2.9181,171.56,171.54,3.0247]
[1729971328174,12.7451863,171.57,171.39,338.0]
[1729971328370,8.0651863,171.54,171.48,1.5854]
[1729971328575,2.9187,171.53,171.5,2.9189]
[1729971328775,4.68,171.53,171.48,1.5854]
[1729971329068,12.7451863,171.53,171.48,1.5854]
[1729971330074,2.919,171.51,171.48,4.5048]
[1729971331676,2.85205873,171.63,171.5,8.0651863]
[1729971331978,2.85205873,171.63,171.48,1.5854]
[1729971331979,8.0651863,171.57,171.52,8.0651863]
[1729971332178,7.5982,171.56,171.52,10.9837863]
[1729971332477,8.0651863,171.54,171.49,2.9962]
[1729971332689,8.0651863,171.53,171.49,2.9962]
[1729971332982,7.5987,171.52,171.49,5.9154]
[1729971333575,4.68,171.52,171.49,5.9154]
[1729971334273,4.68,171.52,171.49,2.9962]
[1729971335378,7.5988,171.52,171.49,2.9962]
[1729971337381,15.6639863,171.52,171.49,5.9154]
[1729971337780,15.6639863,171.52,171.49,2.9962]
[1729971337986,7.5988,171.52,171.49,4.4177]
[1729971339080,4.68,171.52,171.49,1.4986]
[1729971339285,4.68,171.54,171.52,2.9187]
[1729971339589,7.5983,171.55,171.51,8.0651863]
[1729971340297,7.5983,171.55,171.51,10.9839863]
[1729971340984,8.0651863,171.54,171.51,2.9188]
[1729971342784,8.0651863,171.54,171.5,1.5766]
[1729971343390,8.0651863,171.53,171.49,1.4986]
[1729971344798,10.9837863,171.53,171.5,2.919]
[1729971347191,8.0651863,171.51,171.48,1.5854]
[1729971347389,12.7251863,171.51,171.48,1.5854]
[1729971348794,2.919,171.5,171.48,1.5854]
[1729971350999,2.9193,171.49,171.46,2.9196]
[1729971351195,2.9193,171.49,171.45,8.0651863]
[1729971351696,8.0651863,171.5,171.45,8.0651863]
[1729971351903,10.9842863,171.5,171.47,2.9196]
[1729971354600,4.66,171.51,171.48,8.0651863]
[1729971354804,8.0651863,171.53,171.44,2.9943]
[1729971354805,8.0651863,171.53,171.49,8.0651863]
[1729971355009,4.68,171.52,171.49,8.0651863]
[1729971356301,7.5988,171.52,171.49,10.9842863]
[1729971357809,7.5988,171.52,171.49,2.9191]
[1729971359003,4.68,171.52,171.44,2.9943]
[1729971359305,2.9189,171.51,171.48,2.9193]
[1729971362906,7.5988,171.52,171.49,2.9191]
[1729971365321,4.68,171.52,171.5,2.9189]
[1729971377415,2.9196,171.47,171.46,1.45985039]
[1729971377617,12.7251863,171.47,171.36,3.0297]
[1729971377926,8.0651863,171.44,171.38,8.0651863]
[1729971378127,7.5804,171.43,171.38,16.2907839]
[1729971378425,7.5804,171.43,171.38,10.9861863]
[1729971378929,7.5804,171.43,171.39,2.9209]
[1729971383323,7.5804,171.43,171.36,3.0297]
[1729971383324,4.66,171.43,171.36,3.0297]
[1729971383623,2.9206,171.41,171.38,2.921]
[1729971387634,10.9856863,171.42,171.38,2.921]
[1729971389431,10.9856863,171.42,171.39,2.9209]
[1729971394029,8.0651863,171.42,171.39,2.9209]
[1729971396536,8.0651863,171.42,171.4,2.9207]
[1729971397236,4.66,171.45,171.41,8.0651863]
[1729971398631,12.7251863,171.45,171.43,2.9201]
[1729971401641,4.66,171.44,171.39,8.0651863]
[1729971402938,4.66,171.44,171.43,2.9201]
[1729971403742,12.7251863,171.45,171.43,2.9201]
[1729971407939,12.7251863,171.45,171.37,6.71635239]
[1729971408140,8.0651863,171.43,171.41,2.9205]
[1729971409354,2.9204,171.42,171.4,2.9207]
[1729971410350,10.9854863,171.43,171.4,2.9207]
[1729971413658,2.9203,171.43,171.4,2.9207]
[1729971413853,4.66,171.42,171.4,2.9207]
[1729971421459,59.63721118,171.51,171.41,8.0651863]
[1729971421767,8.0651863,171.47,171.41,8.0651863]
[1729971421958,10.9850863,171.45,171.41,8.0651863]
[1729971422260,8.0651863,171.45,171.39,8.0651863]
[1729971422656,2.9202,171.44,171.41,2.9205]
[1729971423657,198.23452441,171.5,171.41,8.0651863]
[1729971423862,10.9847863,171.47,171.44,2.9199]
[1729971424858,8.0651863,171.45,171.43,2.9202]
[1729971425058,4.66,171.44,171.41,8.0651863]
[1729971425861,4.66,171.44,171.43,2.9202]
[1729971429558,2.9198,171.46,171.43,2.9202]
[1729971429760,4.66,171.45,171.43,2.9202]
[1729971431258,12.7251863,171.45,171.43,2.9202]
[1729971436968,12.7251863,171.45,171.4,1.5528]
[1729971438158,12.7251863,171.45,171.43,2.9202]
[1729971440368,8.0651863,171.44,171.31,4.66]
[1729971440567,4.66,171.45,171.37,16.40645222]
[1729971440870,4.66,171.45,171.34,1.4835]
[1729971440871,2.9194,171.48,171.45,2.9198]
[1729971441062,12.7251863,171.47,171.45,2.9198]
[1729971441465,15.6447863,171.47,171.44,2.92]
[1729971444179,12.7251863,171.47,171.46,2.9197]
[1729971444470,12.7251863,171.47,171.42,8.0651863]
[1729971445470,12.7251863,171.47,171.44,2.92]
[1729971446275,15.6447863,171.47,171.44,2.92]
[1729971451574,2.9198,171.46,171.43,2.9201]
[1729971455085,8.0651863,171.47,171.41,8.0651863]
[1729971455277,4.66,171.45,171.42,6.58980873]
[1729971455478,4.66,171.45,171.41,8.0651863]
[1729971455680,4.66,171.45,171.42,6.58968364]
[1729971455981,4.66,171.45,171.43,2.9201]
[1729971461988,4.66,171.45,171.44,2.9201]
[1729971472193,2.9191,171.5,171.47,2.9195]
[1729971472398,4.64,171.48,171.46,8.0651863]
[1729971473298,4.64,171.48,171.46,10.9847863]
[1729971475597,8.0651863,171.51,171.46,8.0651863]
[1729971475794,56.74,171.53,171.5,8.0651863]
[1729971475990,196.87603979,171.52,171.5,8.0651863]
[1729971476796,8.0651863,171.51,171.43,2.9832]
[1729971476995,8.0651863,171.49,171.44,14.64983704]
[1729971477195,4.64,171.48,171.45,6.58465074]
[1729971477406,4.64,171.48,171.44,8.0651863]
[1729971477701,4.64,171.48,171.45,4.37995787]
[1729971478000,4.64,171.48,171.45,2.9198]
[1729971479297,4.64,171.48,171.44,8.0651863]
[1729971479495,4.64,171.48,171.44,2.92]
[1729971479496,2.9196,171.47,171.44,2.92]
[1729971481000,12.7051863,171.48,171.4,1.6029]
[1729971481001,2.92,171.45,171.41,2.9204]
[1729971481297,4.64,171.44,171.42,6.58637269]
[1729971481497,4.64,171.44,171.43,1.46034521]
[1729971482404,4.64,171.44,171.43,6.58690602]
[1729971484208,12.7051863,171.44,171.43,6.58690602]
[1729971484403,15.6252863,171.44,171.4,1.6029]
[1729971485003,15.6252863,171.44,171.41,2.9206]
[1729971486110,15.6252863,171.44,171.4,1.6029]
[1729971486111,2.9205,171.42,171.37,9.5358863]
[1729971486309,8.0651863,171.43,171.38,6.59162897]
[1729971486612,8.0651863,171.43,171.39,6.59162897]
[1729971486800,10.9855863,171.43,171.39,2.9208]
[1729971487104,56.74,171.5,171.4,8.0651863]
[1729971487404,2.92,171.45,171.41,6.58986993]
[1729971487610,4.64,171.44,171.4,8.0651863]
[1729971487912,4.64,171.44,171.41,6.59015718]
[1729971488104,4.64,171.44,171.42,6.58965834]
[1729971488411,4.64,171.44,171.42,2.9204]
[1729971494016,4.64,171.44,171.43,1.46041983]
[1729971494909,4.64,171.44,171.42,2.9204]
[1729971495915,10.99654595,171.46,171.42,2.9204]
[1729971496110,4.64,171.45,171.42,2.9204]
[1729971498514,195.170662,171.52,171.42,8.07674595]
[1729971498715,10.99604595,171.49,171.46,2.9197]
[1729971498920,10.99604595,171.49,171.44,8.07674595]
[1729971498921,4.64,171.48,171.44,8.07674595]
[1729971499113,4.64,171.48,171.46,2.9196]
[1729971499515,4.64,171.47,171.46,2.9196]
[1729971502119,195.170662,171.52,171.46,8.07674595]
[1729971502120,192.23603979,171.52,171.46,8.07674595]
[1729971502325,4.64,171.51,171.5,8.07674595]
[1729971502922,4.64,171.51,171.5,10.99564595]
[1729971510525,4.64,171.54,171.52,2.9185]
[1729971510730,4.64,171.55,171.53,8.07674595]
[1729971511432,2.9182,171.56,171.53,8.07674595]
[1729971511433,4.64,171.56,171.53,8.07674595]
[1729971511733,4.64,171.56,171.55,8.07674595]
[1729971513234,4.64,171.56,171.55,10.99494595]
[1729971514031,4.64,171.56,171.55,2.9182]
[1729971517744,4.64,171.56,171.55,10.99494595]
[1729971534249,2.9186,171.53,171.5,2.9189]
[1729971534444,4.64,171.56,171.51,8.07674595]
[1729971534650,4.64,171.56,171.52,8.07674595]
[1729971537250,2.9182,171.55,171.52,10.99544595]
[1729971538151,4.64,171.56,171.52,10.99544595]
[1729971538352,2.9184,171.54,171.52,2.9187]
[1729971538759,2.9184,171.54,171.51,10.99554595]
[1729971540457,2.9184,171.54,171.52,2.9187]
[1729971541257,10.99504595,171.55,171.52,2.9187]
[1729971541653,4.64,171.56,171.51,10.99544595]
[1729971541854,2.9184,171.54,171.51,10.99544595]
[1729971542659,2.9183,171.55,171.52,2.9187]
[1729971545062,2.9185,171.54,171.51,10.99554595]
[1729971547466,2.9185,171.54,171.51,2.9188]
[1729971548765,8.07674595,171.55,171.5,8.07674595]
[1729971548966,2.9188,171.52,171.49,2.9191]
[1729971549168,4.64,171.51,171.49,2.9191]
[1729971549967,4.64,171.51,171.5,2.919]
[1729971550468,4.64,171.51,171.47,2.9677]
[1729971550667,10.99614595,171.48,171.41,6.5615409]
[1729971550967,12.71674595,171.47,171.42,8.07674595]
[1729971551273,12.71674595,171.46,171.43,2.9202]
[1729971551467,4.64,171.45,171.43,2.9202]
[1729971557874,12.71674595,171.45,171.43,2.9202]
[1729971558873,12.71674595,171.45,171.4,8.07674595]
[1729971559177,15.63664595,171.45,171.42,2.9203]
[1729971560082,8.07674595,171.44,171.42,2.9203]
[1729971570789,8.07674595,171.44,171.39,2.9369]
[1729971570999,8.07674595,171.42,171.4,2.9206]
[1729971571199,4.62,171.41,171.4,2.9206]
[1729971581896,173.02135568,171.46,171.43,2.9201]
[1729971582102,174.72155568,171.46,171.44,8.07674595]
[1729971583296,167.70315568,171.46,171.45,2.9199]
[1729971583500,8.07674595,171.49,171.45,9.53324595]
[1729971583706,4.62,171.48,171.45,9.53324595]
[1729971584207,4.62,171.48,171.46,8.07674595]
[1729971584609,4.62,171.48,171.47,2.9194]
[1729971590309,4.62,171.48,171.46,2.9197]
[1729971595016,4.62,171.48,171.47,2.9196]
[1729971597821,4.62,171.48,171.47,10.99634595]
[1729971602819,4.62,171.48,171.47,2.9196]
[1729971605218,4.62,171.48,171.45,1.4565]
[1729971605422,7.5395,171.48,171.45,4.3764]
[1729971606124,15.61614595,171.48,171.45,2.9198]
[1729971606337,8.07674595,171.47,171.41,8.07674595]
[1729971606630,8.07674595,171.46,171.41,8.07674595]
[1729971606835,10.99654595,171.46,171.43,2.9201]
[1729971607125,4.62,171.48,171.4,1.4041]
[1729971607126,8.07674595,171.44,171.4,1.4041]
[1729971607331,12.69674595,171.43,171.4,1.4041]
[1729971607530,12.69674595,171.43,171.4,4.3247]
[1729971608025,12.69674595,171.43,171.4,2.9206]
[1729971608230,12.69674595,171.43,171.37,9.56694595]
[1729971608427,4.62,171.43,171.39,8.07674595]
[1729971610221,4.62,171.43,171.42,2.9204]
[1729971610628,8.07674595,171.44,171.42,2.9204]
[1729971610824,1.3797,171.5,171.42,8.07674595]
[1729971611029,8.07674595,171.47,171.44,2.9199]
[1729971611622,10.99634595,171.47,171.44,2.9199]
[1729971612130,8.07674595,171.46,171.44,2.9199]
[1729971612330,4.62,171.45,171.44,2.9199]
[1729971613635,4.62,171.45,171.43,2.9202]
[1729971613838,4.62,171.45,171.4,8.07674595]
[1729971614635,4.62,171.45,171.44,2.9201]
[1729971616835,1.378,171.55,171.44,8.07674595]
[1729971617040,8.07674595,171.52,171.47,8.07674595]
[1729971617332,4.62,171.51,171.49,2.9191]
[1729971621036,12.69674595,171.51,171.49,2.9191]
[1729971622929,12.69674595,171.51,171.48,1.4146]
[1729971623132,4.62,171.51,171.48,1.4146]
[1729971623334,12.69674595,171.51,171.48,1.4146]
[1729971623733,12.69674595,171.51,171.49,2.9191]
[1729971628339,8.07674595,171.5,171.44,1.4942]
[1729971628640,8.07674595,171.45,171.42,1.3908]
[1729971628839,8.07674595,171.44,171.42,1.3908]
[1729971629239,8.07674595,171.44,171.43,2.9202]
[1729971629438,8.07674595,171.44,171.42,1.3908]
[1729971630241,8.07674595,171.44,171.43,2.9202]
[1729971642756,2.9204,171.42,171.39,2.9209]
[1729971642957,8.07674595,171.41,171.39,2.9209]
[1729971645055,12.67674595,171.41,171.39,2.9209]
[1729971645557,15.59734595,171.41,171.38,2.9211]
[1729971646360,8.07674595,171.39,171.37,2.9212]
[1729971646559,4.6,171.41,171.35,9.55414595]
[1729971646560,12.67674595,171.41,171.35,9.55414595]
[1729971647362,12.67674595,171.41,171.38,2.9209]
[1729971648064,1.4822,171.51,171.38,8.07674595]
[1729971648360,8.07674595,171.45,171.4,8.07674595]
[1729971648564,4.6,171.44,171.4,8.07674595]
[1729971648765,15.59684595,171.44,171.38,8.07674595]
[1729971649264,12.67674595,171.44,171.41,2.9204]
[1729971649463,12.67674595,171.44,171.38,8.07674595]
[1729971650066,2.9203,171.43,171.4,2.9206]
[1729971651855,8.07674595,171.42,171.4,2.9206]
[1729971652060,10.99734595,171.41,171.38,2.921]
[1729971652365,4.6,171.4,171.38,2.921]
[1729971657270,4.6,171.4,171.39,2.9209]
[1729971659773,4.6,171.4,171.36,1.4945]
[1729971659977,12.67674595,171.4,171.36,1.4945]
[1729971660184,12.67674595,171.4,171.35,1.4774]
[1729971660377,8.07674595,171.37,171.32,1.4086]
[1729971660680,8.07674595,171.35,171.32,1.4086]
[1729971660974,4.6,171.34,171.33,2.9219]
[1729971684388,4.6,171.34,171.32,1.4086]
[1729971684389,12.67674595,171.34,171.32,2.9221]
[1729971684993,12.67674595,171.34,171.3,8.07674595]
[1729971685291,12.67674595,171.34,171.33,2.9219]
[1729971688801,4.6,171.34,171.33,2.9219]
[1729971689508,151.98409905,171.4,171.33,2.9219]
[1729971689808,8.07674595,171.36,171.33,2.9219]
[1729971690005,4.6,171.35,171.33,2.9219]
[1729971690594,4.6,171.34,171.33,2.9219]
[1729971693300,10.99814595,171.36,171.33,2.9219]
[1729971693501,4.6,171.34,171.33,2.9219]
[1729971697704,2.922,171.33,171.27,1.46154709]
[1729971697909,8.07674595,171.32,171.27,8.07674595]
[1729971698510,8.07674595,171.32,171.26,1.4017]
[1729971698711,8.07674595,171.32,171.27,8.07674595]
[1729971699305,8.07674595,171.32,171.3,2.9224]
[1729971700216,8.07674595,171.32,171.29,2.9225]
[1729971701910,8.07674595,171.31,171.27,2.923]
[1729971702106,8.07674595,171.29,171.2,5.11964541]
[1729971702303,8.07674595,171.29,171.21,6.58153572]
[1729971702304,4.6,171.28,171.21,6.58153572]
[1729971702506,4.6,171.28,171.24,8.07674595]
[1729971703019,4.6,171.28,171.27,2.923]
[1729971703312,4.6,171.28,171.24,8.07674595]
[1729971704212,4.6,171.28,171.26,2.9231]
[1729971706315,4.6,171.28,171.24,8.07674595]
[1729971707316,4.6,171.28,171.26,2.9231]
[1729971714524,4.6,171.28,171.27,2.923]
[1729971721525,10.99924595,171.3,171.27,2.923]
[1729971721727,2.9221,171.33,171.3,2.9223]
[1729971721929,2.9221,171.33,171.3,8.07674595]
[1729971722130,4.6,171.32,171.3,8.07674595]
[1729971722729,4.6,171.31,171.3,10.99904595]
[1729971724945,59.7219,171.34,171.3,10.99904595]
[1729971725146,4.6,171.33,171.31,2.9223]
[1729971726349,4.6,171.32,171.31,2.9223]
[1729971728647,4.6,171.32,171.3,8.07674595]
[1729971728849,7.5221,171.32,171.28,8.07674595]
[1729971729748,7.5221,171.32,171.29,2.9225]
[1729971732453,2.9224,171.31,171.28,10.99954595]
[1729971732652,4.6,171.32,171.28,8.07674595]
[1729971733648,7.5222,171.32,171.29,2.9225]
[1729971734653,4.6,171.32,171.29,2.9225]
[1729971736255,4.6,171.32,171.28,8.07674595]
[1729971736456,4.6,171.32,171.3,2.9225]
[1729971736653,4.6,171.32,171.29,8.07674595]
[1729971737455,56.8,171.38,171.35,2.9215]
[1729971737663,4.58,171.37,171.35,2.9215]
[1729971738362,4.58,171.37,171.34,8.07674595]
[1729971738363,4.58,171.37,171.34,10.99844595]
[1729971738563,4.58,171.37,171.34,2.9217]
[1729971738958,67.79794595,171.38,171.34,2.9217]
[1729971739158,4.58,171.37,171.34,2.9217]
[1729971742068,12.65674595,171.37,171.34,2.9217]
[1729971742968,12.65674595,171.37,171.32,8.07674595]
[1729971744074,12.65674595,171.37,171.34,2.9216]
[1729971744374,4.58,171.37,171.34,2.9216]
[1729971744766,4.58,171.36,171.35,2.9216]
[1729971745372,67.79794595,171.38,171.35,2.9216]
[1729971745569,4.58,171.37,171.35,2.9216]
[1729971747976,4.58,171.37,171.36,2.9214]
[1729971749479,56.8,171.38,171.36,2.9214]
[1729971749680,4.58,171.37,171.36,2.9214]
[1729971751878,4.58,171.37,171.32,1.3301]
[1729971752084,8.07674595,171.36,171.32,1.3301]
[1729971752779,2.9217,171.35,171.32,4.2521]
[1729971754485,4.58,171.37,171.31,2.9223]
[1729971754486,10.99864595,171.34,171.31,2.9223]
[1729971754672,12.65674595,171.33,171.31,2.9223]
[1729971755180,12.65674595,171.33,171.27,150.29185197]
[1729971755484,12.65674595,171.33,171.3,2.9223]